[Event "SWE-ch Junior 2019"]
[Site "Eskilstuna"]
[Date "2019.07.09"]
[Round "4.3"]
[White "Torngren, Gustav"]
[Black "Sundin, Emanuel"]
[Result "1-0"]
[ECO "D80"]
[WhiteElo "2109"]
[BlackElo "2134"]
[Annotator "NA"]
[PlyCount "61"]
[EventDate "2019.07.06"]
[EventType "tourn"]
[EventCountry "SWE"]
[SourceTitle "playchess.com"]
[Source "ChessBase"]
[SourceQuality "1"]
[TimeControl "40/5400+30:1800+30"]

1. d4 {[%emt 0:00:27]} Nf6 {[%emt 0:00:12]} 2. c4 {[%emt 0:00:33]} g6 {[%emt 0:00:41]} 3. Nc3 {[%emt 0:01:04]} d5 {[%emt 0:03:41]} 4. Bg5 {[%emt 0:09:06]} Ne4 {[%emt 0:07:36]} 5. Bh4 {[%emt 0:19:06]} Nxc3 {[%emt 0:09:10]} 6. bxc3 {[%emt 0:00:05]} Bg7 {[%emt 0:04:41]} 7. g4 {[%emt 0:18:51]} dxc4 {[%emt 0:18:13]} 8. e3 {[%emt 0:06:05]} Qd5 {[%emt 0:06:27]} 9. f3 {[%emt 0:00:24]} O-O {[%emt 0:03:29]} 10. Qd2 {[%emt 0:02:49]} Re8 {[%emt 0:14:23]} 11. Ne2 {[%emt 0:12:42]} Qxf3 {[%emt 0:04:31]} 12. Rg1 {[%emt 0:02:27]} Qc6 {[%emt 0:00:36]} 13. Bg2 {[%emt 0:01:33]} Qa6 {[%emt 0:00:30]} 14. Nf4 {[%emt 0:09:12]} c6 {[%emt 0:00:24]} 15. Bf1 {[%emt 0:02:07]} Nd7 {[%emt 0:04:53]} 16. a4 {[%emt 0:01:01]} e5 {[%emt 0:01:12]} 17. Nh5 {[%emt 0:00:48]} gxh5 {[%emt 0:09:11]} 18. gxh5 {[%emt 0:00:22]} Kh8 {[%emt 0:03:58]} 19. Bh3 {[%emt 0:04:49]} c5 {[%emt 0:01:48]} 20. Qf2 {[%emt 0:01:32]} Qh6 {[%emt 0:01:50]} 21. O-O-O {[%emt 0:01:47]} Qxh5 {[%emt 0:02:20]} 22. Bxd7 {[%emt 0:02:04]} Bxd7 {[%emt 0:00:26]} 23. Rxg7 {[%emt 0:00:12]} Kxg7 {[%emt 0:00:35]} 24. Rg1+ {[%emt 0:01:02]} Qg6 {[%emt 0:00:39]} 25. Bf6+ {[%emt 0:00:26]} Kg8 {[%emt 0:00:29]} 26. Rxg6+ {[%emt 0:00:16]} fxg6 {[%emt 0:00:11]} 27. dxe5 {[%emt 0:02:05]} Bxa4 {[%emt 0:00:49]} 28. Qh4 {[%emt 0:00:10]} Rac8 {[%emt 0:00:08]} 29. Qxc4+ {[%emt 0:00:11]} Kf8 {[%emt 0:00:37]} 30. Qxa4 {[%emt 0:00:10]} Rc7 {[%emt 0:00:49]} 31. Qxa7 {[%emt 0:00:37]} 1-0

[Event "SWE-ch Junior 2019"]
[Site "Eskilstuna"]
[Date "2019.07.09"]
[Round "4.4"]
[White "Pantzar, Milton"]
[Black "Rasti, Arvin"]
[Result "1-0"]
[ECO "A11"]
[WhiteElo "2357"]
[BlackElo "2220"]
[Annotator "NA"]
[PlyCount "65"]
[EventDate "2019.07.06"]
[EventType "tourn"]
[EventCountry "SWE"]
[SourceTitle "playchess.com"]
[Source "ChessBase"]
[SourceQuality "1"]
[TimeControl "40/5400+30:1800+30"]

1. c4 {[%emt 0:00:00]} c6 {[%emt 0:00:00]} 2. Nf3 {[%emt 0:02:49]} d5 {[%emt 0:00:07]} 3. e3 {[%emt 0:00:48]} Nf6 {[%emt 0:00:35]} 4. Nc3 {[%emt 0:00:12]} e6 {[%emt 0:00:13]} 5. b3 {[%emt 0:01:39]} Nbd7 {[%emt 0:00:10]} 6. Bb2 {[%emt 0:01:16]} Bd6 {[%emt 0:00:15]} 7. Be2 {[%emt 0:00:46]} O-O {[%emt 0:00:50]} 8. Qc2 {[%emt 0:01:46]} b6 {[%emt 0:01:38]} 9. Rg1 {[%emt 0:06:48]} Bb7 {[%emt 0:20:02]} 10. g4 {[%emt 0:00:35]} e5 {[%emt 0:01:49]} 11. g5 {[%emt 0:05:31]} Ne8 {[%emt 0:00:10]} 12. h4 {[%emt 0:09:47]} f5 {[%emt 0:05:54]} 13. gxf6 {[%emt 0:03:26]} Nexf6 {[%emt 0:00:25]} 14. O-O-O {[%emt 0:03:24]} b5 {[%emt 0:05:56]} 15. h5 {[%emt 0:08:39]} b4 {[%emt 0:09:37]} 16. Na4 {[%emt 0:02:09]} Qe7 {[%emt 0:11:17]} 17. Nh4 {[%emt 0:07:54]} Ne4 {[%emt 0:05:35]} 18. h6 {[%emt 0:07:27]} g6 {[%emt 0:07:22]} 19. Nxg6 {[%emt 0:00:56]} hxg6 {[%emt 0:00:12]} 20. f3 {[%emt 0:00:30]} Ndf6 {[%emt 0:02:22]} 21. Rxg6+ {[%emt 0:02:58]} Kh8 {[%emt 0:00:15]} 22. fxe4 {[%emt 0:00:04]} dxe4 {[%emt 0:00:32]} 23. c5 {[%emt 0:05:06]} Bc7 {[%emt 0:00:12]} 24. Bc4 {[%emt 0:00:14]} Bc8 {[%emt 0:00:43]} 25. Rg7 {[%emt 0:02:19]} Qd8 {[%emt 0:00:06]} 26. Rdg1 {[%emt 0:02:29]} Bf5 {[%emt 0:01:02]} 27. R1g5 {[%emt 0:02:54]} Qc8 {[%emt 0:01:24]} 28. Rxc7 {[%emt 0:08:19]} Qxc7 {[%emt 0:00:08]} 29. Rxf5 {[%emt 0:00:03]} Rae8 {[%emt 0:00:36]} 30. Qd1 {[%emt 0:01:05]} Qh7 {[%emt 0:01:47]} 31. Rxe5 {[%emt 0:01:08]} Rxe5 {[%emt 0:00:22]} 32. Bxe5 {[%emt 0:00:05]} Qf5 {[%emt 0:00:12]} 33. Qg1 {[%emt 0:02:10]} 1-0

[Event "SWE-ch Junior 2019"]
[Site "Eskilstuna"]
[Date "2019.07.09"]
[Round "4.5"]
[White "Sorensen, Hampus"]
[Black "Johnson, Daniel"]
[Result "1-0"]
[ECO "D55"]
[WhiteElo "2352"]
[BlackElo "2212"]
[Annotator "NA"]
[PlyCount "101"]
[EventDate "2019.07.06"]
[EventType "tourn"]
[EventCountry "SWE"]
[SourceTitle "playchess.com"]
[Source "ChessBase"]
[SourceQuality "1"]
[TimeControl "40/5400+30:1800+30"]

1. d4 {[%emt 0:00:00]} d5 {[%emt 0:03:28]} 2. c4 {[%emt 0:00:00]} e6 {[%emt 0:00:05]} 3. Nf3 {[%emt 0:00:00]} Nf6 {[%emt 0:00:07]} 4. Bg5 {[%emt 0:00:18]} Be7 {[%emt 0:00:34]} 5. e3 {[%emt 0:00:16]} O-O {[%emt 0:00:27]} 6. Qc2 {[%emt 0:00:23]} b6 {[%emt 0:05:56]} 7. Nc3 {[%emt 0:06:11]} Bb7 {[%emt 0:03:25]} 8. Rd1 {[%emt 0:07:52]} Nbd7 {[%emt 0:03:44]} 9. a3 {[%emt 0:02:15]} h6 {[%emt 0:10:27]} 10. Bh4 {[%emt 0:05:19]} Rc8 {[%emt 0:04:07]} 11. Be2 {[%emt 0:26:10]} c5 {[%emt 0:09:44]} 12. O-O {[%emt 0:01:34]} dxc4 {[%emt 0:12:38]} 13. Ne5 {[%emt 0:01:15]} cxd4 {[%emt 0:07:37]} 14. Rxd4 {[%emt 0:00:49]} Qe8 {[%emt 0:03:18]} 15. Nxc4 {[%emt 0:12:05]} Nd5 {[%emt 0:13:06]} 16. Bg3 {[%emt 0:00:54]} e5 {[%emt 0:04:35]} 17. Rd2 {[%emt 0:06:06]} Nxc3 {[%emt 0:05:15]} 18. bxc3 {[%emt 0:00:13]} Nf6 {[%emt 0:06:29]} 19. f3 {[%emt 0:05:41]} Bc5 {[%emt 0:01:10]} 20. Kh1 {[%emt 0:03:57]} Qe6 {[%emt 0:01:34]} 21. Rfd1 {[%emt 0:01:47]} Ba6 {[%emt 0:01:08]} 22. Nxe5 {[%emt 0:02:23]} Bxe2 {[%emt 0:01:18]} 23. Rxe2 {[%emt 0:00:01]} Nh5 {[%emt 0:00:40]} 24. Nd7 {[%emt 0:01:47]} Nxg3+ 25. hxg3 {[%emt 0:00:02]} Rfd8 {[%emt 0:01:00]} 26. Nxc5 {[%emt 0:00:25]} Rxd1+ 27. Qxd1 {[%emt 0:00:01]} Rxc5 {[%emt 0:00:32]} 28. Qd8+ {[%emt 0:06:29]} Kh7 {[%emt 0:00:02]} 29. Qd3+ {[%emt 0:00:05]} Qg6 {[%emt 0:01:25]} 30. Rd2 {[%emt 0:04:25]} Qxd3 {[%emt 0:00:33]} 31. Rxd3 {[%emt 0:00:00]} Ra5 {[%emt 0:00:31]} 32. c4 {[%emt 0:00:18]} Rc5 {[%emt 0:00:27]} 33. Rd7 {[%emt 0:00:11]} Ra5 {[%emt 0:00:31]} 34. Rxf7 {[%emt 0:00:41]} Rxa3 {[%emt 0:00:11]} 35. e4 {[%emt 0:00:01]} Rc3 {[%emt 0:00:43]} 36. Rxa7 {[%emt 0:00:05]} Rxc4 {[%emt 0:00:04]} 37. Rb7 {[%emt 0:00:24]} Rb4 {[%emt 0:00:44]} 38. g4 {[%emt 0:00:33]} Rb2 {[%emt 0:00:48]} 39. Kh2 {[%emt 0:00:08]} b5 {[%emt 0:00:32]} 40. Kh3 {[%emt 0:03:54]} b4 {[%emt 0:00:20]} 41. Kg3 {[%emt 0:08:05]} Rb1 {[%emt 0:06:33]} 42. Kf4 {[%emt 0:00:25]} b3 {[%emt 0:02:24]} 43. g5 {[%emt 0:08:12]} hxg5+ {[%emt 0:03:05]} 44. Kxg5 {[%emt 0:00:03]} Rb2 {[%emt 0:06:39]} 45. g4 {[%emt 0:00:15]} Rb1 {[%emt 0:01:09]} 46. Kf5 {[%emt 0:03:46]} b2 {[%emt 0:00:14]} 47. f4 {[%emt 0:00:20]} Kh6 {[%emt 0:03:31]} 48. g5+ {[%emt 0:02:42]} Kh5 {[%emt 0:00:52]} 49. Rxg7 {[%emt 0:00:04]} Kh4 {[%emt 0:00:03]} 50. Rb7 {[%emt 0:00:05]} Kg3 {[%emt 0:00:04]} 51. Rb3+ {[%emt 0:00:20]} 1-0

[Event "SWE-ch Junior 2019"]
[Site "Eskilstuna"]
[Date "2019.07.10"]
[Round "5.1"]
[White "Storme, Isak"]
[Black "Carlsson, Ludvig"]
[Result "1-0"]
[ECO "B25"]
[WhiteElo "2330"]
[BlackElo "2218"]
[Annotator "NA"]
[PlyCount "57"]
[EventDate "2019.07.06"]
[EventType "tourn"]
[EventCountry "SWE"]
[SourceTitle "playchess.com"]
[Source "ChessBase"]
[SourceQuality "1"]
[TimeControl "40/5400+30:1800+30"]

1. e4 {[%emt 0:00:00]} g6 {[%emt 0:00:00]} 2. Nc3 {[%emt 0:00:58]} Bg7 {[%emt 0:00:14]} 3. g3 {[%emt 0:00:59]} d6 {[%emt 0:01:27]} 4. Bg2 {[%emt 0:00:14]} Nf6 {[%emt 0:00:15]} 5. f4 {[%emt 0:01:37]} O-O {[%emt 0:02:10]} 6. Nf3 {[%emt 0:00:51]} c5 {[%emt 0:17:04]} 7. O-O {[%emt 0:03:37]} Nc6 {[%emt 0:00:33]} 8. d3 {[%emt 0:00:47]} Bg4 {[%emt 0:03:05]} 9. h3 {[%emt 0:02:51]} Bxf3 {[%emt 0:02:05]} 10. Qxf3 {[%emt 0:00:41]} Nd7 {[%emt 0:00:09]} 11. Kh1 {[%emt 0:10:00]} Nd4 {[%emt 0:09:53]} 12. Qf2 {[%emt 0:00:44]} b5 {[%emt 0:00:38]} 13. e5 {[%emt 0:06:33]} dxe5 {[%emt 0:00:21]} 14. Bxa8 {[%emt 0:01:04]} Qxa8+ {[%emt 0:00:14]} 15. Kh2 {[%emt 0:02:20]} exf4 {[%emt 0:13:32]} 16. Bxf4 {[%emt 0:00:17]} Ne5 {[%emt 0:00:14]} 17. Bxe5 {[%emt 0:00:33]} Bxe5 {[%emt 0:00:08]} 18. Rae1 {[%emt 0:16:53]} Qb8 {[%emt 0:01:15]} 19. Ne4 {[%emt 0:07:59]} f5 {[%emt 0:05:43]} 20. Nxc5 {[%emt 0:01:14]} f4 {[%emt 0:03:31]} 21. Kh1 {[%emt 0:04:11]} Nf5 {[%emt 0:06:35]} 22. Ne6 {[%emt 0:10:45]} fxg3 {[%emt 0:11:41]} 23. Qe2 {[%emt 0:01:10]} g2+ {[%emt 0:14:35]} 24. Kxg2 {[%emt 0:01:43]} Bd4 {[%emt 0:00:58]} 25. Rxf5 {[%emt 0:02:59]} Rxf5 {[%emt 0:01:08]} 26. Nxd4 {[%emt 0:00:09]} Rg5+ {[%emt 0:00:06]} 27. Kh1 {[%emt 0:00:09]} Qg3 {[%emt 0:00:09]} 28. Qe6+ {[%emt 0:00:22]} Kh8 {[%emt 0:00:52]} 29. Qc8+ {[%emt 0:00:12]} 1-0

[Event "SWE-ch Junior 2019"]
[Site "Eskilstuna"]
[Date "2019.07.10"]
[Round "5.2"]
[White "Joensson, Jacob"]
[Black "Torngren, Gustav"]
[Result "1-0"]
[ECO "A52"]
[WhiteElo "1981"]
[BlackElo "2109"]
[Annotator "NA"]
[PlyCount "77"]
[EventDate "2019.07.06"]
[EventType "tourn"]
[EventCountry "SWE"]
[SourceTitle "playchess.com"]
[Source "ChessBase"]
[SourceQuality "1"]
[TimeControl "40/5400+30:1800+30"]

1. d4 {[%emt 0:00:00]} Nf6 {[%emt 0:00:00]} 2. c4 {[%emt 0:00:00]} e5 {[%emt 0:00:13]} 3. dxe5 {[%emt 0:00:02]} Ng4 {[%emt 0:00:10]} 4. Bf4 {[%emt 0:00:09]} Nc6 {[%emt 0:00:11]} 5. Nf3 {[%emt 0:00:10]} Bb4+ {[%emt 0:00:12]} 6. Nbd2 {[%emt 0:00:12]} Qe7 {[%emt 0:00:18]} 7. e3 {[%emt 0:00:37]} Ngxe5 {[%emt 0:00:19]} 8. Nxe5 {[%emt 0:00:25]} Nxe5 {[%emt 0:00:17]} 9. Be2 {[%emt 0:00:12]} d6 {[%emt 0:00:28]} 10. O-O {[%emt 0:00:34]} a5 {[%emt 0:01:25]} 11. Nf3 {[%emt 0:18:31]} h5 {[%emt 0:19:11]} 12. a3 {[%emt 0:09:50]} Bc5 {[%emt 0:01:14]} 13. b4 {[%emt 0:00:21]} Bb6 {[%emt 0:28:29]} 14. Bxe5 {[%emt 0:08:17]} dxe5 {[%emt 0:00:28]} 15. c5 {[%emt 0:00:31]} Ba7 {[%emt 0:00:48]} 16. Qd5 {[%emt 0:08:04]} Bg4 {[%emt 0:08:31]} 17. Bb5+ {[%emt 0:11:57]} Kf8 {[%emt 0:06:14]} 18. Qxb7 {[%emt 0:10:11]} Bxf3 {[%emt 0:00:24]} 19. Qxf3 {[%emt 0:00:17]} e4 {[%emt 0:00:51]} 20. Qf4 {[%emt 0:00:31]} Rh6 {[%emt 0:00:20]} 21. f3 {[%emt 0:06:40]} c6 {[%emt 0:10:07]} 22. Bc4 {[%emt 0:03:47]} exf3 {[%emt 0:10:26]} 23. Qxf3 {[%emt 0:00:35]} Rf6 {[%emt 0:01:10]} 24. Qxh5 {[%emt 0:00:48]} Qxe3+ {[%emt 0:00:38]} 25. Kh1 {[%emt 0:00:11]} Qh6 {[%emt 0:00:46]} 26. Qxh6 {[%emt 0:00:18]} Rxf1+ {[%emt 0:00:03]} 27. Rxf1 {[%emt 0:00:07]} gxh6 {[%emt 0:00:03]} 28. Rxf7+ {[%emt 0:00:06]} Ke8 {[%emt 0:00:02]} 29. Rh7 {[%emt 0:00:24]} Bb8 {[%emt 0:00:09]} 30. b5 {[%emt 0:01:28]} Be5 {[%emt 0:02:26]} 31. g3 {[%emt 0:02:53]} Bd4 {[%emt 0:01:47]} 32. bxc6 {[%emt 0:00:32]} Bxc5 {[%emt 0:00:11]} 33. c7 {[%emt 0:00:09]} Bxa3 {[%emt 0:00:40]} 34. Be6 {[%emt 0:00:17]} Be7 {[%emt 0:01:01]} 35. c8=Q+ {[%emt 0:00:10]} Rxc8 {[%emt 0:00:05]} 36. Bxc8 {[%emt 0:00:05]} a4 {[%emt 0:00:23]} 37. Be6 {[%emt 0:00:22]} a3 {[%emt 0:00:02]} 38. Rxh6 {[%emt 0:00:34]} Kd8 {[%emt 0:00:16]} 39. Rh7 {[%emt 0:00:27]} 1-0

[Event "SWE-ch Junior 2019"]
[Site "Eskilstuna"]
[Date "2019.07.10"]
[Round "5.3"]
[White "Rasti, Arvin"]
[Black "Petersson, Baldur Teodor"]
[Result "1/2-1/2"]
[ECO "B43"]
[WhiteElo "2220"]
[BlackElo "2179"]
[Annotator "NA"]
[PlyCount "120"]
[EventDate "2019.07.06"]
[EventType "tourn"]
[EventCountry "SWE"]
[SourceTitle "playchess.com"]
[Source "ChessBase"]
[SourceQuality "1"]
[TimeControl "40/5400+30:1800+30"]

1. e4 {[%emt 0:00:00]} c5 {[%emt 0:00:00]} 2. Nf3 {[%emt 0:00:00]} e6 {[%emt 0:00:00]} 3. d4 {[%emt 0:00:10]} cxd4 {[%emt 0:00:00]} 4. Nxd4 {[%emt 0:00:05]} a6 {[%emt 0:00:00]} 5. Nc3 {[%emt 0:00:20]} Qc7 {[%emt 0:00:00]} 6. g3 {[%emt 0:00:13]} b5 {[%emt 0:07:24]} 7. Bg2 {[%emt 0:01:09]} Bb7 {[%emt 0:00:07]} 8. O-O {[%emt 0:01:08]} Nc6 {[%emt 0:03:42]} 9. Nb3 {[%emt 0:02:46]} Nf6 {[%emt 0:01:39]} 10. f4 {[%emt 0:04:46]} d6 {[%emt 0:01:23]} 11. Be3 {[%emt 0:01:33]} Ne7 {[%emt 0:05:54]} 12. Nd4 {[%emt 0:08:43]} d5 {[%emt 0:04:18]} 13. e5 {[%emt 0:05:33]} Ne4 {[%emt 0:01:42]} 14. Bxe4 {[%emt 0:00:57]} dxe4 {[%emt 0:00:16]} 15. Ndxb5 {[%emt 0:01:30]} axb5 {[%emt 0:00:09]} 16. Nxb5 {[%emt 0:00:06]} Qc6 {[%emt 0:00:47]} 17. Nd6+ {[%emt 0:00:14]} Kd7 {[%emt 0:00:20]} 18. Nxb7+ {[%emt 0:00:53]} Kc7 {[%emt 0:03:26]} 19. Nd6 {[%emt 0:01:58]} Nd5 {[%emt 0:00:10]} 20. Qd4 {[%emt 0:01:21]} Nxe3 {[%emt 0:09:22]} 21. Qxe3 {[%emt 0:00:13]} Bxd6 {[%emt 0:00:13]} 22. exd6+ {[%emt 0:00:06]} Kxd6 {[%emt 0:00:12]} 23. Qd4+ {[%emt 0:04:03]} Ke7 {[%emt 0:01:29]} 24. f5 {[%emt 0:00:54]} f6 {[%emt 0:02:00]} 25. Qb4+ {[%emt 0:02:31]} Kf7 {[%emt 0:01:20]} 26. fxe6+ {[%emt 0:00:30]} Qxe6 {[%emt 0:00:12]} 27. Rae1 {[%emt 0:01:09]} Rhb8 {[%emt 0:00:42]} 28. Qc3 {[%emt 0:08:18]} Qb6+ {[%emt 0:01:27]} 29. Rf2 {[%emt 0:01:38]} Qxb2 {[%emt 0:01:24]} 30. Qc7+ {[%emt 0:01:53]} Kg8 {[%emt 0:00:17]} 31. Qc4+ {[%emt 0:08:26]} Kh8 {[%emt 0:02:32]} 32. Qxe4 {[%emt 0:04:11]} Qxa2 {[%emt 0:00:36]} 33. Rfe2 {[%emt 0:01:18]} Qf7 {[%emt 0:02:10]} 34. c4 {[%emt 0:00:35]} h6 {[%emt 0:01:16]} 35. Qd5 {[%emt 0:01:33]} Qxd5 {[%emt 0:03:24]} 36. cxd5 {[%emt 0:00:01]} Rd8 {[%emt 0:00:13]} 37. Rd2 {[%emt 0:00:36]} Ra6 {[%emt 0:00:06]} 38. Kf2 {[%emt 0:01:14]} Rad6 {[%emt 0:00:05]} 39. Red1 {[%emt 0:00:11]} Re8 {[%emt 0:00:12]} 40. Kf3 {[%emt 0:01:31]} Re5 {[%emt 0:00:12]} 41. Rd4 {[%emt 0:31:33]} Kh7 {[%emt 0:30:17]} 42. R1d2 {[%emt 0:00:28]} g5 {[%emt 0:02:29]} 43. h4 {[%emt 0:00:45]} Kg6 {[%emt 0:01:15]} 44. hxg5 {[%emt 0:00:19]} fxg5 {[%emt 0:00:46]} 45. g4 {[%emt 0:00:17]} Kf7 {[%emt 0:00:41]} 46. R2d3 {[%emt 0:01:02]} Ke7 {[%emt 0:00:25]} 47. Ra4 {[%emt 0:02:43]} Rexd5 {[%emt 0:01:15]} 48. Rxd5 {[%emt 0:00:06]} Rxd5 {[%emt 0:00:14]} 49. Ra6 {[%emt 0:00:08]} Rd6 {[%emt 0:01:07]} 50. Ra7+ {[%emt 0:00:12]} Kf6 {[%emt 0:00:20]} 51. Ra5 {[%emt 0:00:05]} Rb6 {[%emt 0:00:20]} 52. Kg3 {[%emt 0:00:13]} Rb3+ {[%emt 0:00:26]} 53. Kg2 {[%emt 0:00:05]} Rd3 {[%emt 0:00:59]} 54. Ra6+ {[%emt 0:00:07]} Ke5 {[%emt 0:01:12]} 55. Rxh6 {[%emt 0:00:10]} Kf4 {[%emt 0:00:10]} 56. Rf6+ {[%emt 0:00:04]} Kxg4 {[%emt 0:00:14]} 57. Rf2 {[%emt 0:00:03]} Rg3+ {[%emt 0:01:55]} 58. Kh2 {[%emt 0:00:07]} Rf3 {[%emt 0:00:13]} 59. Ra2 {[%emt 0:00:12]} Re3 {[%emt 0:00:40]} 60. Kg2 {[%emt 0:00:10]} Re4 {[%emt 0:00:06]} 1/2-1/2

[Event "SWE-ch Junior 2019"]
[Site "Eskilstuna"]
[Date "2019.07.10"]
[Round "5.4"]
[White "Sundin, Emanuel"]
[Black "Sorensen, Hampus"]
[Result "0-1"]
[ECO "E04"]
[WhiteElo "2134"]
[BlackElo "2352"]
[Annotator "NA"]
[PlyCount "44"]
[EventDate "2019.07.06"]
[EventType "tourn"]
[EventCountry "SWE"]
[SourceTitle "playchess.com"]
[Source "ChessBase"]
[SourceQuality "1"]
[TimeControl "40/5400+30:1800+30"]

1. d4 {[%emt 0:00:39]} d5 {[%emt 0:00:00]} 2. c4 {[%emt 0:00:18]} e6 {[%emt 0:00:00]} 3. Nf3 {[%emt 0:00:43]} a6 {[%emt 0:00:04]} 4. g3 {[%emt 0:05:02]} dxc4 {[%emt 0:01:42]} 5. Bg2 {[%emt 0:05:25]} Nc6 {[%emt 0:01:12]} 6. a4 {[%emt 0:04:49]} Nf6 {[%emt 0:11:25]} 7. O-O {[%emt 0:01:47]} Rb8 {[%emt 0:08:27]} 8. Qc2 {[%emt 0:13:24]} b5 {[%emt 0:02:29]} 9. axb5 {[%emt 0:05:33]} axb5 {[%emt 0:00:12]} 10. e4 {[%emt 0:05:38]} Be7 {[%emt 0:14:07]} 11. Rd1 {[%emt 0:01:42]} O-O {[%emt 0:05:06]} 12. Nc3 {[%emt 0:05:38]} Bd7 {[%emt 0:01:45]} 13. Bg5 {[%emt 0:09:54]} Qc8 {[%emt 0:11:22]} 14. e5 {[%emt 0:03:33]} Nb4 {[%emt 0:04:40]} 15. Qb1 {[%emt 0:03:19]} Nfd5 {[%emt 0:00:08]} 16. Bxe7 {[%emt 0:00:06]} Nxe7 {[%emt 0:00:01]} 17. Ng5 {[%emt 0:01:16]} Ng6 {[%emt 0:01:33]} 18. h4 {[%emt 0:01:15]} h6 {[%emt 0:07:06]} 19. Nxf7 {[%emt 0:01:09]} Kxf7 {[%emt 0:05:07]} 20. Bf3 {[%emt 0:09:26]} Kg8 {[%emt 0:02:28]} 21. Qxg6 {[%emt 0:01:56]} Rxf3 {[%emt 0:00:07]} 22. Ne4 {[%emt 0:00:27]} Nd5 {[%emt 0:01:10]} 0-1

[Event "SWE-ch Junior 2019"]
[Site "Eskilstuna"]
[Date "2019.07.10"]
[Round "5.5"]
[White "Johnson, Daniel"]
[Black "Pantzar, Milton"]
[Result "0-1"]
[ECO "D10"]
[WhiteElo "2212"]
[BlackElo "2357"]
[Annotator "NA"]
[PlyCount "150"]
[EventDate "2019.07.06"]
[EventType "tourn"]
[EventCountry "SWE"]
[SourceTitle "playchess.com"]
[Source "ChessBase"]
[SourceQuality "1"]
[TimeControl "40/5400+30:1800+30"]

1. d4 {[%emt 0:01:36]} d5 {[%emt 0:00:00]} 2. c4 {[%emt 0:00:07]} c6 {[%emt 0:00:00]} 3. cxd5 {[%emt 0:00:21]} cxd5 {[%emt 0:00:00]} 4. Bg5 {[%emt 0:00:19]} Nc6 {[%emt 0:07:52]} 5. Nc3 {[%emt 0:01:21]} Nf6 {[%emt 0:01:29]} 6. Bxf6 {[%emt 0:02:02]} gxf6 {[%emt 0:01:24]} 7. e3 {[%emt 0:00:24]} e6 {[%emt 0:01:48]} 8. Nf3 {[%emt 0:01:33]} Bd7 {[%emt 0:04:23]} 9. Rc1 {[%emt 0:03:10]} Rc8 {[%emt 0:03:28]} 10. Bd3 {[%emt 0:04:52]} f5 {[%emt 0:04:18]} 11. g3 {[%emt 0:02:37]} Bd6 {[%emt 0:04:07]} 12. O-O {[%emt 0:06:29]} O-O {[%emt 0:02:27]} 13. Kh1 {[%emt 0:19:44]} Kh8 {[%emt 0:03:22]} 14. Ne2 {[%emt 0:13:52]} Qe7 {[%emt 0:12:09]} 15. Nf4 {[%emt 0:03:04]} Rg8 {[%emt 0:12:18]} 16. Qe2 {[%emt 0:07:16]} f6 {[%emt 0:04:05]} 17. Rg1 {[%emt 0:08:12]} Qf7 {[%emt 0:02:16]} 18. Nh4 {[%emt 0:02:44]} Rg5 {[%emt 0:12:14]} 19. Nh3 {[%emt 0:12:09]} Rgg8 {[%emt 0:02:16]} 20. Nf4 {[%emt 0:00:30]} Rg4 {[%emt 0:00:59]} 21. Nxd5 {[%emt 0:05:56]} Rxh4 {[%emt 0:04:53]} 22. gxh4 {[%emt 0:00:26]} exd5 {[%emt 0:00:02]} 23. Qf3 {[%emt 0:00:18]} Ne7 {[%emt 0:05:28]} 24. Rxc8+ {[%emt 0:00:13]} Bxc8 {[%emt 0:00:05]} 25. h5 {[%emt 0:00:16]} Qf8 {[%emt 0:01:43]} 26. a3 {[%emt 0:01:33]} Be6 {[%emt 0:01:06]} 27. Qh3 {[%emt 0:01:34]} Qh6 {[%emt 0:01:27]} 28. Rc1 {[%emt 0:00:41]} Bf7 {[%emt 0:02:22]} 29. Be2 {[%emt 0:00:15]} Be6 {[%emt 0:00:56]} 30. Bd3 {[%emt 0:00:05]} Kg7 {[%emt 0:00:41]} 31. Rg1+ {[%emt 0:00:26]} Kf7 {[%emt 0:00:09]} 32. f4 {[%emt 0:00:35]} Bd7 {[%emt 0:01:02]} 33. Be2 {[%emt 0:00:49]} a6 {[%emt 0:01:02]} 34. Qf1 {[%emt 0:00:55]} Ba4 {[%emt 0:01:56]} 35. Qc1 {[%emt 0:00:32]} Qf8 {[%emt 0:02:12]} 36. Rg3 {[%emt 0:00:32]} Bb5 {[%emt 0:00:48]} 37. Bf3 {[%emt 0:00:29]} Bd3 {[%emt 0:00:42]} 38. Qd2 {[%emt 0:00:28]} Be4 {[%emt 0:00:19]} 39. Qd1 {[%emt 0:00:10]} Qh6 {[%emt 0:00:42]} 40. Kg1 {[%emt 0:00:52]} Bxf3 {[%emt 0:00:48]} 41. Qxf3 {[%emt 0:30:17]} Ke6 {[%emt 0:07:13]} 42. Rg2 {[%emt 0:00:00]} Qf8 {[%emt 0:05:35]} 43. Rc2 {[%emt 0:00:00]} h6 {[%emt 0:01:02]} 44. h3 {[%emt 0:00:00]} Qe8 {[%emt 0:02:34]} 45. Qe2 {[%emt 0:00:00]} Qa4 {[%emt 0:02:27]} 46. Kg2 {[%emt 0:00:00]} b5 {[%emt 0:01:08]} 47. Kf3 {[%emt 0:00:00]} a5 {[%emt 0:01:09]} 48. Kg3 {[%emt 0:00:00]} b4 {[%emt 0:01:18]} 49. axb4 {[%emt 0:00:00]} Qxb4 {[%emt 0:01:31]} 50. Kf2 {[%emt 0:00:00]} Qa4 {[%emt 0:00:49]} 51. Kg2 {[%emt 0:00:00]} Qb3 {[%emt 0:00:50]} 52. Kf2 {[%emt 0:00:42]} a4 {[%emt 0:02:47]} 53. Kg2 {[%emt 0:00:38]} Qa2 {[%emt 0:01:18]} 54. Kf2 {[%emt 0:01:31]} Qb1 {[%emt 0:01:04]} 55. Kg2 {[%emt 0:00:13]} Qa2 {[%emt 0:01:05]} 56. Kf2 {[%emt 0:00:06]} Qa1 {[%emt 0:00:10]} 57. Kg2 {[%emt 0:00:16]} Qb1 {[%emt 0:00:06]} 58. Kh2 {[%emt 0:00:47]} Qa2 {[%emt 0:00:54]} 59. Kg2 {[%emt 0:00:04]} Qb3 {[%emt 0:00:07]} 60. Kh2 {[%emt 0:00:42]} Qb7 {[%emt 0:00:59]} 61. Qg2 {[%emt 0:00:32]} Qb5 {[%emt 0:00:41]} 62. Qe2 {[%emt 0:02:51]} Qxe2+ {[%emt 0:02:20]} 63. Rxe2 {[%emt 0:00:02]} Nc6 {[%emt 0:00:33]} 64. Rg2 {[%emt 0:01:30]} Na5 {[%emt 0:00:36]} 65. Kg3 {[%emt 0:02:11]} Nc4 {[%emt 0:00:09]} 66. Kf3 {[%emt 0:00:31]} Bb4 {[%emt 0:00:20]} 67. Rc2 {[%emt 0:00:37]} Bd2 {[%emt 0:01:00]} 68. Ke2 {[%emt 0:00:30]} Bxe3 {[%emt 0:00:07]} 69. Kd3 {[%emt 0:00:30]} Bxf4 {[%emt 0:00:20]} 70. Re2+ {[%emt 0:00:29]} Kf7 {[%emt 0:00:51]} 71. Rf2 {[%emt 0:00:28]} Bc1 {[%emt 0:00:22]} 72. Rxf5 {[%emt 0:00:24]} Ke6 {[%emt 0:00:07]} 73. Rf2 {[%emt 0:00:38]} Bxb2 {[%emt 0:00:09]} 74. Re2+ {[%emt 0:00:26]} Kf7 {[%emt 0:00:32]} 75. Kc2 {[%emt 0:00:36]} Bxd4 {[%emt 0:00:09]} 0-1